Cogmind - Beta 16 --- EXPLORER MODE // 2025.12.03 @ 16:16:26 Player: K.K.Y. Result: Destroyed by Y-54 Guardian with Flak Gun Performance ------------- Evolutions (0) 0 Regions Visited (4) 800 Robots Destroyed (68) 340 Value Destroyed (1583) 1583 Prototype IDs (13) 260 Alien Tech Used (0) 0 Bonus (1985) 1985 TOTAL SCORE: 4968 Bonus ------- Delivered SUBCON Basin 2000 Friendly Fire -15 Cogmind --------- Core Integrity 0/250 Matter 280/300 Energy 140/140 System Corruption 5% Temperature Cool (18) Movement Treading (165) Location -7/Recycling Parts ------- > --- POWER (1) -------- Light Deuterium Engine > --- PROPULSION (2) --- Armored Treads Medium Treads > --- UTILITY (3) ------ Large Storage Unit Improved Terrain Scanner Terrain Scan Processor > --- WEAPON (2) ------- Gauss Rifle Flak Gun > --- INVENTORY (15) --- Tech Extrapolator Peak State ------------ > --- POWER ------------ Light Deuterium Engine > --- PROPULSION ------- Armored Treads Medium Treads > --- UTILITY ---------- Large Storage Unit Improved Terrain Scanner Terrain Scan Processor > --- WEAPON ----------- Gauss Rifle Flak Gun > --- INVENTORY -------- SUBCON Basin [Rating: 42] Favorites ----------- Power Improved Ion Engine Engine Improved Ion Engine Power Core Light Nuclear Core Propulsion Light Treads Treads Light Treads Utility Improved Terrain Scanner Device Improved Terrain Scanner Storage Large Storage Unit Processor Terrain Scan Processor Weapon Improved Assault Rifle Energy Gun Medium Laser Energy Cannon Powered Cannon Ballistic Gun Improved Assault Rifle Ballistic Cannon Battle Cannon Special Weapon Mining Laser Build | -11 -10 -10 -10 -7 ------- Run | Yrd Mat Min Sub Rec Slots Evolved 1 | . 1 . . . Power . | . . . . . Propulsion . | . . . . . Utility 1 | . 1 . . . Weapon . | . . . . . Parts Attached 35 | 5 8 4 13 5 Power 8 | 1 2 . 4 1 Engine 7 | 1 2 . 3 1 Core 1 | . . . 1 . Reactor . | . . . . . Propulsion 7 | 2 . 3 . 2 Treads 7 | 2 . 3 . 2 Leg . | . . . . . Wheel . | . . . . . Hover . | . . . . . Flight . | . . . . . Utility 8 | . 3 1 4 . Device 5 | . 2 1 2 . Storage 1 | . . . 1 . Processor 2 | . 1 . 1 . Hackware . | . . . . . Protection . | . . . . . Artifact . | . . . . . Weapon 12 | 2 3 . 5 2 Energy Gun 2 | 2 . . . . Energy Cannon 1 | . . . 1 . Ballistic Gun 6 | . 3 . 1 2 Ballistic Cannon 1 | . . . 1 . Launcher . | . . . . . Special Weapon 2 | . . . 2 . Impact Weapon . | . . . . . Slashing Weapon . | . . . . . Piercing Weapon . | . . . . . Special Melee Weapon . | . . . . . Unidentified Prototypes 1 | . 1 . . . Parts Lost 10 | . . . 7 3 Power 3 | . . . 2 1 Propulsion 2 | . . . 1 1 Utility 1 | . . . 1 . Weapon 4 | . . . 3 1 Highest Loss Streak 2 | . . . 2 2 To Critical Strikes 1 | . . . 1 . Average Backups 3 | 1 2 5 4 . Power . | . . . . . Propulsion . | . . . . . Utility 3 | 1 1 4 3 . Weapon . | . . 1 . . Tool/Special . | . . . . . Unused Backups 3 | . 1 . 1 1 Power 1 | . 1 . . . Propulsion . | . . . . . Utility 2 | . . . 1 1 Weapon . | . . . . . Tool/Special . | . . . . . Average Slot Usage (%) 84 | . 81 100 79 94 Engine 15 | . 12 12 18 10 Core 2 | . . . 3 . Treads 18 | . 25 25 14 21 Device 21 | . 13 25 23 12 Storage 1 | . . . 1 12 Processor 5 | . 7 12 2 12 Energy Gun 1 | . 12 . . . Energy Cannon 2 | . . . 4 . Ballistic Gun 10 | . 10 25 4 19 Ballistic Cannon 2 | . . . 3 4 Peak Build Rating 42 | 5 16 16 37 42 Average Rating 23 | 4 10 16 28 30 On Entrance 13 | . 5 16 16 31 Avg Prop Armor Cover (%) . | . . . . . Naked Turns . | . . . . . Heaviest Build 37 | 8 15 15 37 34 Greatest Support 48 | 40 40 40 40 48 Greatest Overweight (x) 8 | . . . 1 8 Average Overweight (x) . | . . . . . Largest Inventory Capacity 15 | 5 5 5 15 15 Average Capacity 6 | 5 5 5 6 15 Most Carried 15 | 5 5 5 15 15 Average Carried 5 | 1 2 5 6 8 Final Capacity 15 | 5 5 5 15 15 Final Carried 15 | 2 5 5 15 1 Class Distribution -------------------- 57% | Hacker-Mutant 25% | Hacker-Skirmisher 16% | Scavenger-Mutant Dominant Class ---------------- Hacker-Mutant | -10/Materials Hacker-Skirmisher | -10/Mines Hacker-Mutant | -10/Subcaves Hacker-Mutant | -7/Recycling Resources | -11 -10 -10 -10 -7 ----------- Run | Yrd Mat Min Sub Rec Matter Collected 1490 | 250 133 308 647 152 Remotely . | . . . . . Salvage Created 2052 | 226 422 327 980 97 Parts 135 | 15 35 24 57 4 Haulers Intercepted 1 | . 1 . . . Recyclers Shooed 2 | . 2 . . . Parts Field Recycled . | . . . . . Retrieved Matter . | . . . . . Parts Self-Destructed . | . . . . . Prevented . | . . . . . Parts Restored . | . . . . . Kills | -11 -10 -10 -10 -7 ------- Run | Yrd Mat Min Sub Rec Combat Hostiles Destroyed 44 | . 6 9 27 2 Guns 15 | . 5 9 . 1 Cannons 24 | . . . 23 1 Classes Destroyed 11 | 3 5 . 2 1 Worker 7 | 2 3 2 . . Builder 4 | . 4 . . . Tunneler 7 | 5 . 2 . . Hauler 1 | . 1 . . . Recycler 1 | 1 . . . . Turret 2 | . . . 2 . Watcher 2 | . 2 . . . Swarmer 13 | . 2 6 5 . Grunt 11 | . 4 3 4 . Sentry 2 | . . . . 2 Subdweller 18 | . . . 18 . Best Kill Streak 6 | 6 3 3 5 1 Combat Bots Only 3 | . 2 3 3 1 Max Kills in Single Turn 1 | 1 1 1 1 1 Gunslinging . | . . . . . Exploded . | . . . . . Melee . | . . . . . Uniques/NPCs Destroyed . | . . . . . Combat | -11 -10 -10 -10 -7 -------- Run | Yrd Mat Min Sub Rec Hostile Shots Fired 284 | . 39 28 109 108 Missed 81 | . 8 9 32 32 Hits 203 | . 31 19 77 76 Projectile 203 | . 31 19 77 76 AOE 1 | . . . 1 . Critical Strikes 3 | . . . 3 . Damage Taken 1519 | . 214 123 841 341 Core 250 | . 19 23 144 64 Absorbed by Shields . | . . . . . Ignored by Resistances 958 | . 139 82 498 239 Core Remaining (%) 100 | 100 . . . . Volleys Fired 222 | 11 47 23 126 15 Largest 2 | 2 2 2 2 2 Hottest 123 | 90 90 46 123 61 Shots Fired 331 | 22 89 49 146 25 Gun 197 | 22 89 49 21 16 Cannon 121 | . . . 112 9 Launcher . | . . . . . Special 13 | . . . 13 . Kinetic 148 | . 15 49 59 25 Thermal 183 | 22 74 . 87 . Explosive . | . . . . . Electromagnetic . | . . . . . Robot Hit Streak 37 | 15 25 19 37 22 Robot Miss Streak 2 | . 1 1 2 1 Penetration Max . | . . . . . Secondary Targets 1 | . 1 . . . Max Gunslinging Chain 1 | . 1 . . . Shots Hit Robots 225 | 15 69 36 81 24 Core Hits 84 | 9 24 17 26 8 Critical Kills 5 | . . . 5 . Critical Parts Destroyed . | . . . . . Critical Strikes 12 | 2 4 . 5 1 Burn 6 | 2 4 . . . Meltdown 5 | . . . 5 . Destroy 1 | . . . . 1 Melee Attacks . | . . . . . Impact . | . . . . . Slashing . | . . . . . Piercing . | . . . . . Sneak Attacks . | . . . . . Combat Hostiles . | . . . . . Follow-up Attacks . | . . . . . Damage Inflicted 5262 | 181 869 519 3265 428 Guns 1841 | 181 863 519 . 278 Cannons 3308 | . . . 3158 150 Explosions . | . . . . . Melee . | . . . . . Ramming 6 | . 6 . . . Kinetic 1542 | . 175 519 420 428 Thermal 3714 | 181 688 . 2845 . Explosive . | . . . . . Electromagnetic . | . . . . . Impact . | . . . . . Slashing . | . . . . . Piercing . | . . . . . Highest Corruption 5 | . 5 5 5 5 Average Corruption 4 | . 3 5 5 5 Corruption Purged . | . . . . . Corruption Blocked . | . . . . . Effects 195 | . 20 33 124 18 Message Errors 45 | . 5 4 31 5 Matter Fused 55 | . 3 12 36 4 Heat Flow Errors 27 | . 1 6 17 3 Energy Discharges 23 | . 1 2 17 3 Parts Fused 3 | . 1 . 2 . Data Loss (minor) 21 | . 3 5 11 2 Data Loss (major) 3 | . . 1 2 . Misfires 9 | . 3 3 3 . Alerts 5 | . 1 . 3 1 Weapon Failures 4 | . 2 . 2 . Overload Shots . | . . . . . Overflow Damage 94 | . . . 94 . Projectiles 94 | . . . 94 . Explosions . | . . . . . Melee . | . . . . . Knockbacks 5 | . . . 5 . Impact . | . . . . . Kinetic 5 | . . . 5 . Secondary . | . . . . . Self-Inflicted Damage . | . . . . . Shots . | . . . . . Rammed 2 | . 1 1 . . Targets Rammed 2 | . 1 1 . . Kicked . | . . . . . Crushed . | . . . . . Highest Temperature 409 | 90 409 329 274 246 Average Temperature 87 | 28 118 119 67 63 Received Heat Transfer 877 | . 138 87 466 186 Effects 4 | . 3 . 1 . Shutdowns 1 | . 1 . . . Energy Bleed 2 | . 1 . 1 . Interference 1 | . 1 . . . Siege Activations . | . . . . . Martial Activations . | . . . . . Shielding Activations . | . . . . . Robots Disrupted . | . . . . . Combat Hostiles . | . . . . . Robots Corrupted . | . . . . . Combat Hostiles . | . . . . . Parts Fried . | . . . . . Impact Corruptions . | . . . . . Robots Melted 6 | . 1 . 5 . Combat Hostiles 5 | . 1 . 4 . Parts Melted 9 | 2 1 . 6 . Heat Transferred 3053 | 655 2118 . 280 . Parts Sabotaged . | . . . . . Parts Stolen . | . . . . . Parts Stripped . | . . . . . Power Chain Reactions . | . . . . . Alert | -11 -10 -10 -10 -7 ------- Run | Yrd Mat Min Sub Rec Maximum Alert Level . | . . . . . Low Security (%) 100 | 100 100 100 . 100 Level 1 . | . . . . . Level 2 . | . . . . . Level 3 . | . . . . . Level 4 . | . . . . . Level 5 . | . . . . . High Security . | . . . . . Max Security . | . . . . . Peak Influence 55 | 10 50 55 . 20 Initial . | . . . . . Average 4 | 3 4 7 . . Influence Increases 828 | 40 211 240 280 57 Destroy 0b10 Robot/C 560 | . 120 180 220 40 Destroy 0b10 Robot/NC 110 | 40 50 20 . . Destroy Leader 106 | . 36 40 30 . Successful Hack 17 | . 4 . . 13 Disable Machine 4 | . . . . 4 Destroy Structure 1 | . 1 . . . Lose Combat Pursuer 30 | . . . 30 . Influence Decreases 828 | 40 211 240 280 57 Time Decay 824 | 40 211 240 280 53 Lost Part 4 | . . . . 4 Squads Dispatched . | . . . . . Investigation . | . . . . . Extermination . | . . . . . Reinforcement . | . . . . . Assault . | . . . . . Garrison . | . . . . . Intercept . | . . . . . Searches Triggered . | . . . . . Construction Impeded . | . . . . . Haulers Reinforced . | . . . . . Active Scanning Responses . | . . . . . Cargo Convoy Interrupts . | . . . . . Stealth | -11 -10 -10 -10 -7 --------- Run | Yrd Mat Min Sub Rec Distress Signals 1 | . 1 . . . Communications Jammed . | . . . . . Distress Signals . | . . . . . Times Spotted 50 | . 9 9 29 3 Peak Tracking Total 3 | . 3 2 3 1 Tactical Retreats 2 | . . . 2 . Traps | -11 -10 -10 -10 -7 ------- Run | Yrd Mat Min Sub Rec Traps Triggered 7 | . 6 . 1 . Indirectly . | . . . . . Trap Hack Attempts . | . . . . . Triggered . | . . . . . Disarmed . | . . . . . Reprogrammed . | . . . . . Reused . | . . . . . Traps Extracted . | . . . . . Installed . | . . . . . Triggered . | . . . . . Machines | -11 -10 -10 -10 -7 ---------- Run | Yrd Mat Min Sub Rec Machines Disabled 3 | . 1 . 1 1 Max in Single Turn 1 | . 1 . 1 1 Machines Repaired . | . . . . . Machines Dismantled . | . . . . . Machines Sabotaged . | . . . . . Overloaded Fab Kills . | . . . . . Hacking | -11 -10 -10 -10 -7 --------- Run | Yrd Mat Min Sub Rec Machines Accessed 14 | . 6 . 4 4 Terminals 10 | . 6 . . 4 Fabricators . | . . . . . Repair Stations . | . . . . . Recycling Units . | . . . . . Scanalyzers . | . . . . . Garrison Access . | . . . . . Total Hacks 27 | . 9 . 9 9 Successful 20 | . 6 . 9 5 Failed 7 | . 3 . . 4 Catastrophic . | . . . . . Database Lockouts . | . . . . . Manual 18 | . 10 . . 8 Terminals 18 | . 9 . . 9 Fabricators . | . . . . . Repair Stations . | . . . . . Recycling Units . | . . . . . Scanalyzers . | . . . . . Garrison Access . | . . . . . Terminal Hacks 11 | . 1 . 9 1 Record 6 | . . . 6 . Part Schematic 1 | . . . . 1 Robot Analysis 1 | . 1 . . . Open Door 1 | . . . 1 . Proto ID Catalog 1 | . . . 1 . Release Object 1 | . . . 1 . Fabricator Hacks . | . . . . . Repair Station Hacks . | . . . . . Recycling Unit Hacks . | . . . . . Scanalyzer . | . . . . . Garrison Access Hacks . | . . . . . Unauthorized Hacks 9 | . 5 . . 4 Terminals 9 | . 5 . . 4 Botnet 9 | . 5 . . 4 Fabricators . | . . . . . Repair Stations . | . . . . . Recycling Units . | . . . . . Scanalyzers . | . . . . . Garrison Access . | . . . . . Data Cores Recovered . | . . . . . Used . | . . . . . Hacking Detections 7 | . 3 . . 4 Full Trace Events 2 | . 1 . . 1 Feedback Events . | . . . . . Feedback Blocked . | . . . . . Robot Schematics Acquired . | . . . . . Robots Built . | . . . . . Authchips . | . . . . . Time . | . . . . . Total Robot Build Rating . | . . . . . Part Schematics Acquired 1 | . . . . 1 Parts Built . | . . . . . Authchips . | . . . . . Time . | . . . . . Total Part Build Rating . | . . . . . Part Studies Acquired . | . . . . . Parts Repaired . | . . . . . Time . | . . . . . Parts Recycled . | . . . . . Recycled Matter . | . . . . . Retrieved Matter . | . . . . . Retrieved Components . | . . . . . Parts Scanalyzed . | . . . . . Part Schematics Acquired . | . . . . . Parts Damaged . | . . . . . Bothacking | -11 -10 -10 -10 -7 ------------ Run | Yrd Mat Min Sub Rec Used RIF Installer . | . . . . . Robots Hacked . | . . . . . Non-combat . | . . . . . Combat . | . . . . . Robot Hacks Applied . | . . . . . Relay Couplers Released . | . . . . . Fabnet Peak Effective % . | . . . . . Robots Rewired . | . . . . . Allies Hacked . | . . . . . Hacks Repelled . | . . . . . Allies | -11 -10 -10 -10 -7 -------- Run | Yrd Mat Min Sub Rec Total Allies . | . . . . . Largest Group . | . . . . . Highest-Rated Group . | . . . . . Highest-Rated Ally . | . . . . . Total Orders . | . . . . . Ally Attacks . | . . . . . Total Damage . | . . . . . Kills . | . . . . . Allies Corrupted . | . . . . . Allies Melted . | . . . . . Intel | -11 -10 -10 -10 -7 ------- Run | Yrd Mat Min Sub Rec Active Infowar (turns) 7198 | . 626 1150 4785 637 Terrain 7179 | . 607 1150 4785 637 Structural 4986 | . 536 1150 3300 . Robot Analysis Total 1 | . 1 . . . Derelict Logs Recovered 1 | . . . 1 . Drone Launches . | . . . . . Drone Recoveries . | . . . . . Exploration | -11 -10 -10 -10 -7 ------------- Run | Yrd Mat Min Sub Rec Turns Passed 7871 | 126 1173 1150 4785 637 Spaces Moved 4196 | 67 630 652 2531 316 Core 33 | 23 . . . 10 Treads 4163 | 44 630 652 2531 306 Legs . | . . . . . Wheels . | . . . . . Hover . | . . . . . Flight . | . . . . . Fastest Speed 50 | 50 160 160 160 165 Average Speed 168 | 122 160 160 172 179 Slowest Speed 450 | 160 160 160 240 450 Overloaded Moves . | . . . . . Propulsion Burnouts . | . . . . . Robots Hopped . | . . . . . Potential Cave-ins . | . . . . . Cave-ins Triggered . | . . . . . Exploration Rate (%) 66 | 4 77 98 95 58 Regions Visited 4 Branch Regions 3 Pre-discovered Areas . | . . . . . Known Exits Taken 4 | 1 1 1 1 . Unknown Exits Taken . | . . . . . Scrap Searched 7 | . . . 7 . Spaces Dug . | . . . . . Terrain Destroyed 7 | . . . 7 . Melee . | . . . . . Projectile 7 | . . . 7 . AOE . | . . . . . Terrain Rammed . | . . . . . Walls Destroyed . | . . . . . Machines Disabled . | . . . . . Actions | -11 -10 -10 -10 -7 --------- Run | Yrd Mat Min Sub Rec Total 4681 | 89 709 714 2807 362 Wait 179 | . . 31 125 23 Move 4192 | 66 629 651 2530 316 Hop . | . . . . . Pick Up 21 | 7 11 . 2 1 Fast Attach 17 | . 4 . 9 4 Attach 15 | 5 6 . 4 . Detach 8 | . 3 . 5 . Swap 8 | . 2 4 1 1 Drop 17 | . 6 4 5 2 Fire 222 | 11 47 23 126 15 Melee . | . . . . . Ram . | . . . . . Kick . | . . . . . Crush 2 | . 1 1 . . Escape Stasis . | . . . . . Rewire . | . . . . . Trap . | . . . . . Miscellaneous . | . . . . . Route ------- -11/Scrapyard -10/Materials (discovered 4 exits: *Mat x2 / *Min x2) -10/Mines (discovered 2 exits: *Mat / *Sub) -10/Subcaves (discovered 3 exits: *Mat x2 / *Rec) -7/Recycling (discovered 1 exit: Scr) History --------- Turn | Location | Event 14 | -11/Scrapyard | Identified exit to Materials 14 | -11/Scrapyard | Discovered exit to Materials (range 15) 127 | -11/Scrapyard | Entered Materials 127 | -10/Materials | Evolved 1 slot: Utility x1 318 | -10/Materials | Build established: Hacker-Mutant 363 | -10/Materials | Identified exit to Mines 363 | -10/Materials | Discovered exit to Mines (range 6) 400 | -10/Materials | Identified exit to Materials 400 | -10/Materials | Discovered exit to Materials (range 6) 428 | -10/Materials | Discovered exit to Mines (range 14) 1101 | -10/Materials | Discovered exit to Materials (range 5) 1173 | -10/Materials | Build established: Hacker-Skirmisher 1300 | -10/Materials | Entered Mines 1316 | -10/Mines | Met a Derelict bent on vengeance 1521 | -10/Mines | Joined a pair of Derelicts in attacking an 0b10 outpost 1558 | -10/Mines | Identified exit to Subcaves 1558 | -10/Mines | Discovered exit to Subcaves (range 14) 1738 | -10/Mines | Discovered exit to Materials (range 14) 2450 | -10/Mines | Entered Subcaves 2451 | -10/Subcaves | Approached by a straggling Scientist 2511 | -10/Subcaves | Learned 8 Materials zone layouts 2737 | -10/Subcaves | Visited 4L-MR0's lab 2759 | -10/Subcaves | Found Powered Cannon 2761 | -10/Subcaves | Attached Powered Cannon, gained temporary slot: Power 2871 | -10/Subcaves | A Subdweller sparked back to life 2871 | -10/Subcaves | A Subdweller sparked back to life 2877 | -10/Subcaves | Ambushed by Subdweller buried in earth 2907 | -10/Subcaves | Identified exit to Materials 2907 | -10/Subcaves | Discovered exit to Materials (range 11) 2911 | -10/Subcaves | Found Power Bank 2912 | -10/Subcaves | Attached Power Bank, gained temporary slots: Power x3 3198 | -10/Subcaves | Build established: Hacker-Mutant 3884 | -10/Subcaves | Identified exit to Recycling 3884 | -10/Subcaves | Discovered exit to Recycling (range 12) 3986 | -10/Subcaves | Shifting Twisted Machinery released Sub. Power Source 4065 | -10/Subcaves | Shifting Twisted Machinery released Sub. Shrapnel Launcher 4235 | -10/Subcaves | Build established: Scavenger-Mutant 4262 | -10/Subcaves | Discovered exit to Materials (range 5) 4315 | -10/Subcaves | Visited Clippyterm 4320 | -10/Subcaves | Learned Research machine intel 4338 | -10/Subcaves | A swath of the cavern ceiling suddenly collapsed 4544 | -10/Subcaves | Shifting Twisted Machinery released Shrapnel Trap 4545 | -10/Subcaves | Shifting Twisted Machinery released Sub. Shrapnel Launcher 5228 | -10/Subcaves | Shifting Twisted Machinery released Sub. Power Source 5553 | -10/Subcaves | Build established: Hacker-Mutant 5590 | -10/Subcaves | Disturbed a concealed Subdweller 5595 | -10/Subcaves | Disturbed a concealed Subdweller 5608 | -10/Subcaves | Core integrity fell below 50% 5860 | -10/Subcaves | A swath of the cavern ceiling suddenly collapsed 6687 | -10/Subcaves | Found SUBCON Basin 7235 | -10/Subcaves | Entered Recycling 7290 | -7/Recycling | Core integrity fell below 20% 7525 | -7/Recycling | Scanned before Scraplab entrance 7594 | -7/Recycling | Entered Scraplab 7605 | -7/Recycling | Identified exit to Scraptown 7605 | -7/Recycling | Discovered exit to Scraptown (range 14) 7872 | -7/Recycling | Destroyed by Y-54 Guardian with Flak Gun Last Messages --------------- Trojan loaded successfully. Testing... Terminal linked with 2 systems. Awaiting botnet instructions. >>Schematic(Adv. Terrain Scan Processor) Downloading schematic... Adv. Terrain Scan Processor Rating: 4 Schematic downloaded. 07759_ System corrupted: Energy discharge (-50). 07759_ Connecting with Terminal... >>Trojan(Botnet) Trojan loaded successfully. Testing... Terminal linked with 3 systems. Awaiting botnet instructions. 07779_ System corrupted: IFF burst signal emitted. 07827_ System corrupted: Energy discharge (-49). 07872_ Y-54 Guardian springs to life. Map ----- +----------------------------------------------------+ | ????????????????????#????#??#?## ###### """ ## | | ?????????????????????????###???# #?#""" """ # | | ?????????????????#???????????#?# #?#"T # | | ?????????????????? ?###??###?### ###""" # | | ?????????????????? ?#???######## ###### """ # | | ????????????????? """ + | | ????????????????# ######+####### """ # | | ???????????????????? ?"????# # # | | ????????????????????? ??"??+ """ """ + + | | ????????????????????? ?"???# """ """ # ######## | | ?????????????????##? ??? # """ """ # #??#???? | | ????????????????#????? # # ##????## | | ???????????????????# ? #??# """ """ # ####?##? | | ??????????????????#???# ??# """ """ # ####?##? | | ??????????????????? ?# #### """ """ + ## ## ## | | ????????????????? ????# ?#?# # # | | ?????????????????? ???# #### # # | | ??????????????????? ? # + + # | | ??????????????????? ??# # # # | | ?????????????????? ???# ###########+## # | | ????????????????? ??? # # | | ???????????????????? # # | | ???????????######+##### # | | ?????????? u # | | ?????????? + | | ?????????? @ # | | ????????????#??#"Y"#####Y##"Y"############# | | ???????????#??#????????##?#"""#??###?##?#?######## | | ????????????????????????#?#####???????#?#??######? | | ?????????????????????????????#?##?##????#???#?#??? | | | | | | | | | | | | | | | | | | | | | | | | | | | | | | | | | | | | | | | | | +----------------------------------------------------+ Best States ------------- Heat Dissipation 25 Energy Generation 36 Energy Capacity 525 Matter Stores 300 Matter Capacity 300 Sight Range 16 Terrain Scan Range 16 Terrain Scan Density 85 Resistance: KI 35 Resistance: TH 35 Resistance: EX 35 Resistance: EM 35 Resistance: I 35 Resistance: S 35 Resistance: P 35 Evasion (%) 50 Recoil Reduction 2 Offensive Hacking 20 Item Schematics ----------------- Adv. Terrain Scan Processor | -7/Recycling | Hacked Robot Schematics ------------------ None Fabricated ------------ Nothing Repaired ---------- Nothing Studied --------- None Alien Tech Used ----------------- None Achievements -------------- None Challenges ------------ None Game ------ Seed FlightGuidanceCycler Manual? 0 Play Time 00:31:57 Cumulative 162.4 hours Start 2025.12.03 @ 15:06:27 End 2025.12.03 @ 16:16:26 Sessions 1 Manual Loads 0 Difficulty Explorer Special Mode None Game No. 213 Rogue 0 Adventurer 0 Explorer 213 Win Type - Total 0 Types 0/0/0/0/0/0/0/0/0/0 Lore% 70 Gallery% 66 Achievement% 52 Wizard Run 0 Options --------- Layout 1 ASCII 0 Keyboard 0 Movement Mouse Keybinds 0 Fullscreen 1 Font 24/Smallcaps Map View 50x35 Zoom Use 0% Tactical HUD 1 Map Filters NONE Filters NONE Steam 1 RUN: f53a8f5f-182d-4806-aafb-654d36cd73ff